bitfinex/quotes_SOLUSD_20241226
["timestamp","ask_amount","ask_price","bid_price","bid_amount"]
[1735193552078,10.14137127,194.89,194.85,20.0]
[1735193554188,10.14137127,194.89,194.84,20.0]
[1735193555186,10.14137127,194.89,194.85,20.0]
[1735193555384,10.14137127,194.9,194.85,20.0]
[1735193560093,23.776884,194.99,194.82,10.26686127]
[1735193560094,10.14137127,194.91,194.86,20.0]
[1735193562000,10.14137127,194.91,194.84,0.12549]
[1735193562195,10.14137127,194.9,194.86,20.0]
[1735193562692,10.14137127,194.9,194.83,12.8315]
[1735193562993,10.14137127,194.9,194.84,30.86]
[1735193564070,10.14137127,194.91,194.85,0.12549]
[1735193564368,10.14137127,194.92,194.85,10.26686127]
[1735193567200,10.14137127,194.91,194.85,0.12549]
[1735193569500,10.14137127,194.89,194.84,30.86]
[1735193569804,10.14137127,194.88,194.84,20.0]
[1735193570095,10.14137127,194.88,194.82,0.12549]
[1735193570288,10.14137127,194.89,194.82,0.12549]
[1735193571107,10.14137127,194.87,194.81,1.5604]
[1735193571277,10.14137127,194.87,194.83,20.0]
[1735193572872,10.14137127,194.87,194.81,1.5604]
[1735193576999,10.14137127,194.87,194.81,20.0]
[1735193577304,10.14137127,194.84,194.77,21.06046165]
[1735193577889,10.14137127,194.84,194.76,32.4982]
[1735193578093,10.14137127,194.81,194.76,1.6382]
[1735193578398,10.14137127,194.79,194.72,47.35167127]
[1735193579198,10.14137127,194.79,194.75,20.0]
[1735193579404,23.776884,194.86,194.75,20.0]
[1735193579706,10.14137127,194.82,194.76,20.0]
[1735193580002,10.14137127,194.81,194.76,20.0]
[1735193581782,10.14137127,194.79,194.72,16.49167127]
[1735193581979,10.14137127,194.78,194.73,20.0]
[1735193582192,10.14137127,194.77,194.71,1.6382]
[1735193584516,10.14137127,194.78,194.71,1.6382]
[1735193584700,10.14137127,194.79,194.71,11.77957127]
[1735193584895,10.14137127,194.8,194.75,20.0]
[1735193585099,10.14137127,194.81,194.74,10.26686127]
[1735193585616,10.14137127,194.82,194.74,10.26686127]
[1735193586211,10.14137127,194.84,194.77,10.14137127]
[1735193586511,10.14137127,194.85,194.78,10.26686127]
[1735193586717,10.14137127,194.85,194.78,11.90506127]
[1735193587215,10.14137127,194.86,194.79,30.14137127]
[1735193587409,10.14137127,194.85,194.79,20.0]
[1735193588316,10.14137127,194.86,194.79,20.0]
[1735193590395,10.14137127,194.86,194.8,0.12549]
[1735193590905,10.14137127,194.87,194.8,0.12549]
[1735193591425,10.14137127,194.87,194.81,20.0]
[1735193592519,10.14137127,194.88,194.83,20.0]
[1735193596129,10.14137127,194.87,194.83,20.0]
[1735193598107,10.14137127,194.85,194.81,20.0]
[1735193599228,10.14137127,194.84,194.78,32.4982]
[1735193599426,10.14137127,194.83,194.78,32.4982]
[1735193599607,10.14137127,194.83,194.79,0.12549]
[1735193603928,10.14137127,194.84,194.79,0.12549]
[1735193609054,10.14137127,194.85,194.79,0.12549]
[1735193609214,48.59678508,194.9,194.79,0.12549]
[1735193609215,10.14137127,194.86,194.79,0.12549]
[1735193609654,10.14137127,194.85,194.79,0.12549]
[1735193623174,10.14137127,194.87,194.79,0.12549]
[1735193623379,10.14137127,194.87,194.79,41.12686127]
[1735193625790,10.14137127,194.87,194.81,0.12549]
[1735193626490,35.85333187,194.92,194.84,20.0]
[1735193626668,10.14137127,194.88,194.84,20.0]
[1735193626868,10.14137127,194.89,194.84,20.0]
[1735193628188,10.14137127,194.89,194.83,0.12549]
[1735193629588,10.14137127,194.87,194.83,0.12549]
[1735193629900,10.14137127,194.87,194.81,6.5087]
[1735193629901,10.14137127,194.85,194.81,20.0]
[1735193630413,10.14137127,194.85,194.79,0.12549]
[1735193631703,10.14137127,194.85,194.81,20.0]
[1735193633895,10.14137127,194.85,194.78,32.4982]
[1735193633896,10.14137127,194.82,194.75,30.84]
[1735193634075,8.1122,194.88,194.73,1.5518]
[1735193634076,10.14137127,194.78,194.73,1.5518]
[1735193634781,10.14137127,194.74,194.7,8.01602117]
[1735193635183,10.14137127,194.74,194.68,80.77430942]
[1735193635184,10.14137127,194.74,194.69,0.12549]
[1735193635487,10.14137127,194.73,194.69,0.12549]
[1735193635709,46.58178508,194.8,194.69,0.12549]
[1735193635876,10.14137127,194.74,194.68,1.5518]
[1735193636204,10.14137127,194.74,194.69,0.12549]
[1735193636574,10.14137127,194.77,194.71,0.12549]
[1735193636805,10.14137127,194.77,194.72,20.0]
[1735193639598,10.14137127,194.78,194.73,0.12549]
[1735193644329,10.14137127,194.78,194.72,0.12549]
[1735193648932,10.14137127,194.78,194.71,0.12549]
[1735193650933,10.14137127,194.79,194.73,20.0]
[1735193651313,10.14137127,194.79,194.75,20.0]
[1735193652019,6.2022,194.9,194.78,0.12549]
[1735193652223,10.14137127,194.85,194.78,0.12549]
[1735193652428,10.14137127,194.85,194.78,10.26686127]
[1735193652727,10.14137127,194.85,194.78,41.10686127]
[1735193655963,10.14137127,194.85,194.78,30.96549]
[1735193656559,6.2022,194.9,194.78,41.10686127]
[1735193656745,10.14137127,194.85,194.78,41.10686127]
[1735193657264,10.14137127,194.86,194.78,41.10686127]
[1735193658539,10.14137127,194.84,194.78,41.10686127]
[1735193659963,10.14137127,194.85,194.78,30.96549]
[1735193660876,10.14137127,194.86,194.78,41.876683]
[1735193661745,10.14137127,194.86,194.78,54.711483]
[1735193662465,10.14137127,194.86,194.81,20.0]
[1735193663478,10.14137127,194.86,194.82,0.12549]
[1735193663782,10.14137127,194.87,194.82,20.12549]
[1735193665174,35.85333187,194.92,194.84,0.12549]
[1735193665465,10.14137127,194.9,194.84,0.12549]
[1735193670784,35.85333187,194.92,194.84,0.12549]
[1735193670985,10.14137127,194.9,194.84,0.12549]
[1735193671371,10.14137127,194.91,194.84,0.12549]
[1735193672087,35.85333187,194.92,194.86,20.0]
[1735193672257,10.14137127,194.92,194.87,0.12549]
[1735193672461,10.14137127,194.93,194.89,20.0]
[1735193674684,10.14137127,194.94,194.89,20.0]
[1735193674875,10.14137127,194.94,194.9,20.0]
[1735193676473,10.14137127,194.93,194.9,20.0]
[1735193676993,10.14137127,194.94,194.9,20.0]
[1735193677591,10.14137127,194.93,194.9,20.0]
[1735193681808,10.14137127,194.94,194.9,20.0]
[1735193682810,10.14137127,194.91,194.86,20.0]
[1735193683111,10.14137127,194.9,194.83,58.23591372]
[1735193683287,10.14137127,194.9,194.84,0.12549]
[1735193684691,10.14137127,194.9,194.86,20.0]
[1735193685616,10.14137127,194.89,194.83,32.4113]
[1735193685794,10.14137127,194.89,194.84,0.12549]
[1735193686110,19.4801,194.97,194.84,41.87658452]
[1735193686111,10.14137127,194.91,194.84,41.87658452]
[1735193686309,10.14137127,194.92,194.84,41.87658452]
[1735193686796,10.14137127,194.92,194.87,20.0]
[1735193688216,10.14137127,194.91,194.87,20.0]
[1735193688517,10.14137127,194.91,194.84,30.96549]
[1735193691717,19.4801,194.97,194.87,20.0]
[1735193691921,10.14137127,194.91,194.87,20.0]
[1735193697624,10.14137127,194.91,194.84,30.96549]
[1735193698122,6.6571,194.97,194.83,25.31394331]
[1735193698123,10.14137127,194.89,194.85,20.0]
[1735193698327,10.14137127,194.89,194.83,1.5713]
[1735193700609,10.14137127,194.88,194.83,1.5713]
[1735193700934,0.12549,194.96,194.83,1.5713]
[1735193700935,10.14137127,194.87,194.83,21.5713]
[1735193701427,10.14137127,194.88,194.83,21.5713]
[1735193702730,35.84600398,194.94,194.83,21.5713]
[1735193702930,10.14137127,194.89,194.83,21.5713]
[1735193703121,10.14137127,194.9,194.84,0.12549]
[1735193703619,10.14137127,194.89,194.84,0.12549]
[1735193703931,10.14137127,194.9,194.84,0.12549]
[1735193704334,10.14137127,194.89,194.84,0.12549]
[1735193704514,35.84600398,194.94,194.83,21.5713]
[1735193704717,10.14137127,194.9,194.83,21.5713]
[1735193706534,35.84600398,194.94,194.83,21.5713]
[1735193706535,35.84600398,194.94,194.86,20.0]
[1735193706835,10.14137127,194.92,194.88,20.0]
[1735193707034,45.98737525,194.94,194.88,20.0]
[1735193707332,35.84600398,194.94,194.89,0.12549]
[1735193707525,1.6448,195.0,194.89,0.12549]
[1735193707744,10.14137127,194.96,194.91,0.12549]
[1735193708414,10.14137127,194.97,194.91,0.12549]
[1735193708613,10.14137127,194.98,194.91,41.10686127]
[1735193709139,10.14137127,194.99,194.91,41.10686127]
[1735193709344,10.14137127,194.98,194.91,41.10686127]
[1735193710434,10.14137127,194.97,194.91,30.96549]
[1735193711641,10.14137127,194.97,194.91,0.12549]
[1735193711818,35.83284359,195.01,194.9,33.186768]
[1735193711819,10.14137127,194.95,194.9,1.5774]
[1735193712021,10.14137127,194.94,194.9,21.5774]
[1735193712739,10.14137127,194.95,194.9,21.5774]
[1735193713336,10.14137127,194.94,194.9,21.5774]
[1735193713941,10.14137127,194.95,194.9,21.5774]
[1735193715051,10.14137127,194.96,194.9,21.5774]
[1735193715254,10.14137127,194.96,194.91,0.12549]
[1735193715556,10.14137127,194.97,194.91,0.12549]
[1735193719760,10.14137127,194.98,194.91,47.14236127]
[1735193720058,10.14137127,194.98,194.93,0.12549]
[1735193720363,35.83284359,195.01,194.93,30.96549]
[1735193720668,10.14137127,194.99,194.93,30.96549]
[1735193722663,10.14137127,195.0,194.93,30.96549]
[1735193722855,10.14137127,194.99,194.93,30.96549]
[1735193723256,10.14137127,195.0,194.93,30.96549]
[1735193723840,35.83284359,195.01,194.95,0.12549]
[1735193724441,35.83284359,195.01,194.95,41.10686127]
[1735193724958,45.97421486,195.01,194.95,30.96549]
[1735193725567,45.97421486,195.01,194.95,0.12549]
[1735193725754,35.83284359,195.01,194.97,0.12549]
[1735193725949,35.83284359,195.01,194.98,20.0]
[1735193727064,10.14137127,195.05,194.99,0.12549]
[1735193727362,10.14137127,195.06,194.99,50.96549]
[1735193728661,96.287,195.15,195.03,1.5302]
[1735193728864,20.0,195.12,195.04,0.12549]
[1735193729054,10.14137127,195.09,195.04,0.12549]
[1735193729455,10.14137127,195.08,195.03,1.5302]
[1735193729655,10.14137127,195.06,195.03,1.5302]
[1735193729852,10.14137127,195.04,194.99,32.3702]
[1735193730670,10.14137127,195.04,195.0,0.12549]
[1735193732284,10.14137127,195.05,195.0,0.12549]
[1735193732870,10.14137127,195.05,194.97,2.2993184]
[1735193733068,10.14137127,195.04,194.97,1.5302]
[1735193733253,10.14137127,195.03,194.97,1.5302]
[1735193734572,10.14137127,195.04,194.98,0.12549]
[1735193736652,10.14137127,195.05,194.98,41.10686127]
[1735193737459,10.14137127,195.05,194.98,41.87589288]
[1735193738476,10.14137127,195.05,195.01,20.0]
[1735193740157,10.14137127,195.05,194.98,41.87589288]
[1735193740780,10.14137127,195.05,195.01,20.0]
[1735193741201,20.0,195.12,195.01,50.84]
[1735193741362,10.14137127,195.07,195.02,0.12549]
[1735193741554,10.14137127,195.08,195.02,0.12549]
[1735193742391,20.0,195.12,195.02,0.12549]
[1735193742572,10.14137127,195.07,195.02,0.12549]
[1735193744778,10.14137127,195.08,195.02,0.12549]
[1735193745115,10.14137127,195.07,195.02,0.12549]
[1735193745310,10.14137127,195.06,195.01,50.84]
[1735193745483,10.14137127,195.05,195.01,20.0]
[1735193745685,10.14137127,195.04,195.01,20.0]
[1735193746214,10.14137127,195.05,195.01,20.0]
[1735193747596,10.14137127,195.06,195.01,20.0]
[1735193748604,10.14137127,195.07,195.02,0.12549]
[1735193748815,10.14137127,195.09,195.02,0.12549]
[1735193749194,10.14137127,195.09,195.02,41.10686127]
[1735193749593,1.5758,195.15,195.04,0.12549]
[1735193749918,10.14137127,195.12,195.06,0.12549]
[1735193750290,10.14137127,195.13,195.06,0.12549]
[1735193752599,10.14137127,195.12,195.06,0.12549]
[1735193753010,10.14137127,195.11,195.05,30.96549]
[1735193753201,10.14137127,195.09,195.05,30.96549]
[1735193753395,10.14137127,195.09,195.05,0.12549]
[1735193753602,10.14137127,195.09,195.05,20.12549]
[1735193754385,10.14137127,195.07,195.03,1.5873]
[1735193754590,10.14137127,195.08,195.03,1.5873]
[1735193755421,20.0,195.14,195.03,1.5873]
[1735193755722,10.14137127,195.08,195.03,1.5873]
[1735193756023,10.14137127,195.08,195.04,0.12549]
[1735193757314,10.14137127,195.08,195.03,1.5873]
[1735193757912,10.14137127,195.08,195.04,0.12549]
[1735193758120,10.14137127,195.09,195.04,0.12549]
[1735193758295,10.14137127,195.09,195.05,20.0]
[1735193759113,10.14137127,195.11,195.06,0.12549]
[1735193759705,10.14137127,195.12,195.06,0.12549]
[1735193760139,10.14137127,195.11,195.06,0.12549]
[1735193760638,10.14137127,195.09,195.05,20.0]
[1735193765527,10.14137127,195.1,195.05,20.0]
[1735193765735,10.14137127,195.11,195.05,20.0]
[1735193766040,6.207,195.19,195.06,50.96549]
[1735193766233,10.14137127,195.13,195.06,61.10686127]
[1735193766442,10.14137127,195.12,195.06,50.96549]
[1735193767023,10.14137127,195.11,195.06,50.96549]
[1735193767740,10.14137127,195.11,195.07,20.0]
[1735193769115,10.14137127,195.11,195.03,33.19613603]
[1735193769321,10.14137127,195.09,195.04,20.0]
[1735193779142,10.14137127,195.09,195.03,1.5873]
[1735193779335,10.14137127,195.06,195.03,1.5873]
[1735193779542,10.14137127,195.06,195.02,20.0]
[1735193781559,7.94745357,195.18,195.04,1.5798]
[1735193781732,10.14137127,195.12,195.05,10.14137127]
[1735193782127,10.14137127,195.12,195.06,0.12549]
[1735193783744,10.14137127,195.13,195.06,0.12549]
[1735193785035,10.14137127,195.13,195.06,6.51789]
[1735193785571,6.207,195.19,195.08,0.12549]
[1735193785741,10.14137127,195.16,195.08,41.10686127]
[1735193786071,1.5197,195.2,195.08,41.10686127]
[1735193786250,10.14137127,195.16,195.08,41.10686127]
[1735193787170,10.14137127,195.15,195.08,0.12549]
[1735193787379,10.14137127,195.14,195.1,20.0]
[1735193788562,10.14137127,195.15,195.1,20.0]
[1735193790763,10.14137127,195.12,195.06,19.2084]
[1735193791072,10.14137127,195.11,195.06,6.3924]
[1735193791443,10.14137127,195.09,195.04,1.5798]
[1735193791842,10.14137127,195.08,195.04,1.5798]
[1735193792180,10.14137127,195.07,195.04,1.5798]
[1735193798098,10.14137127,195.07,194.99,2.28926394]
[1735193798300,10.14137127,195.05,194.99,1.5204]
[1735193798477,10.14137127,195.04,194.99,1.5204]
[1735193798667,10.14137127,195.03,194.99,1.5204]
[1735193800579,10.14137127,195.04,194.99,1.5204]
[1735193801410,40.56548508,195.1,194.99,1.5204]
[1735193801411,10.14137127,195.02,194.99,1.5204]
[1735193801879,10.14137127,195.01,194.99,1.5204]
[1735193802079,10.14137127,195.0,194.93,6.1574]
[1735193802403,10.14137127,194.98,194.93,6.1574]
[1735193802599,10.14137127,194.98,194.93,0.12549]
[1735193802974,23.776884,195.08,194.93,30.96549]
[1735193803187,10.14137127,195.01,194.94,10.14137127]
[1735193803615,10.14137127,195.01,194.96,20.0]
[1735193804103,10.14137127,195.0,194.94,0.12549]
[1735193804299,10.14137127,195.0,194.95,20.0]
[1735193804805,10.14137127,195.01,194.96,20.0]
[1735193806238,10.14137127,195.02,194.96,20.0]
[1735193807101,10.14137127,195.02,194.97,20.0]
[1735193807930,10.14137127,194.98,194.85,20.70180857]
[1735193808098,10.14137127,194.95,194.87,10.14137127]
[1735193808298,10.14137127,194.95,194.88,0.12549]
[1735193808633,10.14137127,194.95,194.87,10.14137127]
[1735193809004,10.14137127,194.95,194.88,0.12549]
[1735193809221,10.14137127,194.95,194.9,20.0]
[1735193809417,10.14137127,194.94,194.9,20.0]
[1735193811838,10.14137127,194.94,194.91,20.0]
[1735193814254,10.14137127,194.96,194.91,20.0]
[1735193820869,10.14137127,194.94,194.91,20.0]
[1735193821266,10.14137127,194.94,194.9,20.0]
[1735193823855,10.14137127,194.95,194.9,20.0]
[1735193825364,10.14137127,194.95,194.91,20.0]
[1735193827579,10.14137127,194.95,194.87,30.84]
[1735193827790,10.14137127,194.95,194.85,2.39858118]
[1735193827791,10.14137127,194.91,194.85,1.6291]
[1735193828296,10.14137127,194.91,194.86,0.12549]
[1735193829302,10.14137127,194.9,194.85,1.6291]
[1735193829603,10.14137127,194.88,194.81,30.84]
[1735193830074,10.14137127,194.87,194.81,30.84]
[1735193830393,10.14137127,194.87,194.82,0.12549]
[1735193830577,10.14137127,194.84,194.8,1.5006]
[1735193831600,23.776884,194.95,194.81,40.98137127]
[1735193831795,10.14137127,194.94,194.87,10.26686127]
[1735193832096,10.14137127,194.95,194.88,10.14137127]
[1735193832294,10.14137127,194.95,194.87,30.26686127]
[1735193832787,35.83497413,195.0,194.87,30.26686127]
[1735193832963,10.14137127,194.94,194.87,30.26686127]
[1735193834217,10.14137127,194.94,194.89,20.0]
[1735193834879,10.14137127,194.95,194.89,20.0]
[1735193835805,10.14137127,194.95,194.9,20.0]
[1735193837416,35.83497413,195.0,194.91,0.12549]
[1735193837585,10.14137127,194.96,194.91,20.12549]
[1735193837789,10.14137127,194.97,194.91,21.71349]
[1735193837992,10.14137127,194.96,194.91,21.71349]
[1735193838996,10.14137127,194.95,194.91,21.71349]
[1735193842306,10.14137127,194.92,194.83,1.588]
[1735193842489,10.14137127,194.88,194.83,1.588]
[1735193843505,10.14137127,194.88,194.84,20.0]
[1735193846634,10.14137127,194.88,194.83,1.588]
[1735193848414,10.14137127,194.9,194.84,20.12549]
[1735193849228,10.14137127,194.88,194.84,20.0]
[1735193849727,10.14137127,194.88,194.83,1.588]
[1735193851731,1.6665,194.95,194.84,20.0]
[1735193851732,10.14137127,194.89,194.84,20.0]
[1735193852323,10.14137127,194.9,194.85,20.0]
[1735193852518,10.14137127,194.91,194.86,20.0]
[1735193854150,10.14137127,194.94,194.89,0.12549]
[1735193854433,10.14137127,194.96,194.91,21.6379]
[1735193854637,35.83497413,195.0,194.91,21.6379]
[1735193854638,10.14137127,194.97,194.91,21.6379]
[1735193854808,10.14137127,194.96,194.91,21.6379]
[1735193855234,10.14137127,194.95,194.91,21.6379]
[1735193855627,10.14137127,194.96,194.91,21.6379]
[1735193856618,10.14137127,194.95,194.91,21.6379]
[1735193859030,10.14137127,194.95,194.91,1.6379]
[1735193859217,10.14137127,194.94,194.91,1.6379]
[1735193865651,10.14137127,194.96,194.91,1.6379]
[1735193866646,35.83497413,195.0,194.92,20.12549]
[1735193866818,10.14137127,194.99,194.93,20.0]
[1735193868049,10.14137127,194.97,194.92,20.0]
[1735193868215,10.14137127,194.96,194.92,20.0]
[1735193868724,10.14137127,194.97,194.92,20.0]
[1735193877755,10.14137127,194.97,194.91,1.6379]
[1735193879946,10.14137127,194.97,194.92,20.0]
[1735193880290,10.14137127,194.95,194.91,1.6379]
[1735193880435,10.14137127,194.95,194.9,20.0]
[1735193880952,10.14137127,194.91,194.86,1.5183]
[1735193881249,10.14137127,194.88,194.86,1.5183]
[1735193881636,10.14137127,194.88,194.82,1.5183]
[1735193881820,10.14137127,194.87,194.82,1.5183]
[1735193882548,10.14137127,194.85,194.82,1.5183]
[1735193883649,10.14137127,194.86,194.82,1.5183]
[1735193883950,10.14137127,194.87,194.82,1.5183]
[1735193884164,112.261184,194.96,194.84,20.0]
[1735193884165,10.14137127,194.89,194.84,20.0]
[1735193884541,10.14137127,194.89,194.85,20.0]
[1735193885259,10.14137127,194.89,194.84,20.0]
[1735193886171,10.14137127,194.88,194.84,20.0]
[1735193888371,10.14137127,194.9,194.85,0.12549]
[1735193888743,6.5843,194.96,194.86,20.0]
[1735193888957,10.14137127,194.92,194.87,20.0]
[1735193889543,10.14137127,194.91,194.86,20.0]
[1735193891139,10.14137127,194.9,194.86,20.0]
[1735193893072,10.14137127,194.9,194.87,20.0]
[1735193895074,10.14137127,194.9,194.84,30.84]
[1735193895315,10.14137127,194.88,194.84,20.0]
[1735193897650,10.14137127,194.9,194.86,20.0]
[1735193900475,10.14137127,194.88,194.82,1.5183]
[1735193900684,10.14137127,194.86,194.79,43.6737]
[1735193901372,23.776884,194.91,194.79,43.6737]
[1735193901574,10.14137127,194.87,194.79,53.81507127]
[1735193901782,10.14137127,194.87,194.82,20.0]
[1735193906360,23.776884,194.91,194.82,20.0]
[1735193906560,10.14137127,194.86,194.82,20.0]
[1735193907870,6.4596,194.92,194.82,20.0]
[1735193908072,10.14137127,194.87,194.82,20.0]
[1735193911095,10.14137127,194.9,194.84,21.6308]
[1735193914204,10.14137127,194.9,194.85,30.84]
[1735193914795,10.14137127,194.88,194.84,20.0]
[1735193915105,10.14137127,194.86,194.81,20.0]
[1735193916796,10.14137127,194.86,194.82,20.0]
[1735193916976,10.14137127,194.86,194.83,20.0]
[1735193917878,10.14137127,194.84,194.79,1.6308]
[1735193919087,10.14137127,194.84,194.77,30.84]
[1735193925215,10.14137127,194.84,194.77,40.98137127]
[1735193927413,10.14137127,194.84,194.8,20.0]
[1735193938718,10.14137127,194.84,194.81,20.0]
[1735193941403,10.14137127,194.84,194.78,0.12549]
[1735193941908,10.14137127,194.84,194.8,20.0]
[1735193944713,10.14137127,194.84,194.79,20.0]
[1735193945230,10.14137127,194.84,194.8,20.0]
[1735193947007,10.14137127,194.82,194.77,30.96549]
[1735193947312,10.14137127,194.8,194.76,30.84]
[1735193948106,10.14137127,194.8,194.77,20.0]
[1735193950507,10.14137127,194.85,194.81,20.0]
[1735193950706,10.14137127,194.86,194.81,20.0]
[1735193951020,10.14137127,194.85,194.81,20.0]
[1735193951220,10.14137127,194.84,194.81,20.0]
[1735193951620,10.14137127,194.84,194.79,0.12549]
[1735193951819,10.14137127,194.84,194.81,20.0]
[1735193952224,6.1214,194.9,194.82,0.12549]
[1735193952422,10.14137127,194.89,194.84,0.12549]
[1735193952612,10.14137127,194.9,194.86,20.0]
[1735193953826,10.14137127,194.9,194.87,20.0]
[1735193955113,10.14137127,194.9,194.86,20.0]
[1735193956010,10.14137127,194.91,194.88,20.0]
[1735193956509,44.97671882,194.92,194.89,20.0]
[1735193956843,34.83534755,194.92,194.89,20.0]
[1735193957016,34.83534755,194.92,194.9,20.0]
[1735193957717,34.83534755,194.92,194.89,20.0]
[1735193958238,10.14137127,194.93,194.89,20.0]
[1735193958539,10.14137127,194.95,194.91,20.0]
[1735193958908,0.15488069,194.99,194.91,20.0]
[1735193959257,10.14137127,194.96,194.91,20.0]
[1735193959939,10.14137127,194.96,194.92,0.12549]
[1735193960438,10.14137127,194.97,194.92,0.12549]
[1735193960626,10.14137127,194.96,194.92,0.12549]
[1735193960948,10.14137127,194.93,194.88,45.2209]
[1735193961832,10.14137127,194.93,194.89,0.12549]
[1735193962130,10.14137127,194.94,194.89,0.12549]
[1735193964039,0.15488069,194.99,194.92,0.12549]
[1735193964245,0.15488069,194.99,194.93,20.0]
[1735193964246,10.14137127,194.97,194.93,20.0]
[1735193964421,10.14137127,194.97,194.92,0.12549]
[1735193964623,10.14137127,194.98,194.92,0.12549]
[1735193965417,0.15488069,194.99,194.96,20.0]
[1735193966249,0.15488069,194.99,194.95,0.12549]
[1735193967045,0.15488069,194.99,194.95,30.96549]
[1735193968130,0.15488069,194.99,194.95,0.12549]
[1735193968953,10.29625196,194.99,194.95,0.12549]
[1735193969153,10.29625196,194.99,194.96,20.0]
[1735193971953,0.15488069,194.99,194.96,20.0]
[1735193972457,0.15488069,194.99,194.98,64.88374527]
[1735193974141,0.15488069,194.99,194.98,0.12549]
[1735193974852,0.15488069,194.99,194.96,34.3502]
[1735193975060,0.15488069,194.99,194.96,1.5277]
[1735193975243,10.14137127,195.0,194.94,30.84]
[1735193976065,10.14137127,195.0,194.95,0.12549]
[1735193976838,10.14137127,195.0,194.97,20.0]
[1735193977560,23.776884,195.09,194.97,20.0]
[1735193977771,10.14137127,195.02,194.98,20.0]
[1735193979258,10.14137127,195.03,194.98,20.0]
[1735193979567,10.14137127,195.04,195.0,20.0]
[1735193979943,10.14137127,195.05,195.0,20.0]
[1735193980365,10.14137127,195.04,195.01,20.0]
[1735193980963,10.14137127,195.03,195.01,20.0]
[1735193981743,10.14137127,195.02,194.99,0.12549]
[1735193982153,10.14137127,195.03,194.99,0.12549]
[1735193982541,10.14137127,195.04,194.99,0.12549]
[1735193986075,10.14137127,195.04,194.97,12.8224]
[1735193986673,10.14137127,195.0,194.97,20.0]
[1735193986837,10.14137127,195.0,194.94,30.84]
[1735193988281,10.14137127,195.0,194.97,20.0]
[1735193988875,10.14137127,195.01,194.97,20.0]
[1735193989052,10.14137127,194.99,194.97,20.0]
[1735193989264,10.14137127,194.99,194.94,30.84]
[1735193990045,10.14137127,194.99,194.96,20.0]
[1735193990254,10.14137127,194.98,194.94,0.12549]
[1735193990452,10.14137127,194.98,194.94,20.12549]
[1735193991054,10.14137127,194.98,194.93,20.0]
[1735193991259,10.14137127,194.97,194.93,20.0]
[1735193992171,10.14137127,194.96,194.93,20.0]
[1735193993976,10.14137127,194.97,194.93,20.0]
[1735194001084,10.14137127,194.98,194.94,0.12549]
[1735194001379,10.14137127,194.99,194.94,0.12549]
[1735194002582,10.14137127,194.99,194.94,20.12549]
[1735194002786,10.14137127,194.99,194.94,0.12549]
[1735194004383,7.9879,195.03,194.96,0.12549]
[1735194004384,10.14137127,195.0,194.96,0.12549]
[1735194004885,10.14137127,195.01,194.96,20.12549]
[1735194005055,10.14137127,195.01,194.96,0.12549]
[1735194005253,10.14137127,195.0,194.96,20.12549]
[1735194005455,10.14137127,194.97,194.89,30.84]
[1735194005768,10.14137127,194.96,194.92,20.0]
[1735194006187,10.14137127,194.96,194.93,0.12549]
[1735194007785,10.14137127,194.97,194.93,0.12549]
[1735194008170,10.14137127,194.97,194.93,20.12549]
[1735194010791,10.14137127,194.97,194.9,10.14137127]
[1735194010974,10.14137127,194.97,194.91,0.12549]
[1735194018394,10.14137127,194.97,194.91,30.96549]
[1735194021470,0.15488069,195.02,194.95,20.12549]
[1735194021672,0.15488069,195.02,194.98,0.12549]
[1735194021970,0.15488069,195.02,194.98,20.12549]
[1735194022927,10.29625196,195.02,194.98,20.12549]
[1735194023107,10.14137127,195.01,194.98,20.12549]
[1735194023405,10.14137127,194.99,194.92,12.8257]
[1735194023587,10.14137127,194.97,194.89,22.96897127]
[1735194023778,10.14137127,194.97,194.9,0.12549]
[1735194024705,10.14137127,194.97,194.9,10.26686127]
[1735194026903,10.14137127,194.98,194.92,20.12549]
[1735194027083,10.14137127,194.98,194.92,0.12549]
[1735194030313,1.6278,195.0,194.88,10.14137127]
[1735194030314,10.14137127,194.96,194.88,10.14137127]
[1735194030482,10.14137127,194.94,194.86,54.58028168]
[1735194030681,10.14137127,194.92,194.84,10.14137127]